fUSD/lending_fUSD_20250108
["ID","MTS","AMOUNT","RATE_DAILY","PERIOD"]
[348169914,1736362261767,-666.44,0.0001209,2]
[348169915,1736362261776,-554.61,0.0001209,2]
[348169916,1736362261786,-500.0,0.0001209,2]
[348169917,1736362261801,-2827.12,0.0001209,2]
[348169918,1736362261811,-2378.14,0.0001209,2]
[348169919,1736362261820,-1628.91,0.0001209,2]
[348169920,1736362261830,-590.58,0.0001209,2]
[348169921,1736362261841,-2603.36,0.0001209,2]
[348169922,1736362261851,-642.15568101,0.0001209,2]
[348169923,1736362261861,-500.0,0.0001209,2]
[348169924,1736362261872,-1087.38,0.0001209,2]
[348169925,1736362261882,-500.0,0.0001209,2]
[348169926,1736362261892,-500.0,0.0001209,2]
[348169927,1736362261903,-3082.77,0.0001209,2]
[348169928,1736362261913,-573.65,0.0001209,2]
[348169929,1736362261926,-787.24,0.0001209,2]
[348169930,1736362261938,-500.0,0.0001209,2]
[348169931,1736362261949,-1301.03,0.0001209,2]
[348169932,1736362261958,-500.0,0.0001209,2]
[348169933,1736362261974,-1988.72,0.0001209,2]
[348169934,1736362261998,-500.0,0.0001209,2]
[348169935,1736362262022,-500.0,0.0001209,2]
[348169936,1736362262048,-1555.02,0.0001209,2]
[348169937,1736362262071,-1430.04,0.0001209,2]
[348169938,1736362262095,-500.0,0.0001209,2]
[348169939,1736362262118,-981.86,0.0001209,2]
[348169940,1736362262142,-692.07,0.0001209,2]
[348169941,1736362262166,-1072.98,0.0001209,2]
[348169942,1736362262189,-657.45,0.0001209,2]
[348169943,1736362262214,-948.96,0.0001209,2]
[348169944,1736362262238,-553.15,0.0001209,2]
[348169945,1736362262259,-500.0,0.0001209,2]
[348169946,1736362262270,-2333.81,0.0001209,2]
[348169947,1736362262280,-500.0,0.0001209,2]
[348169948,1736362262298,-500.0,0.0001209,2]
[348169949,1736362262308,-762.73,0.0001209,2]
[348169950,1736362262319,-688.07,0.0001209,2]
[348169951,1736362262330,-593.8,0.0001209,2]
[348169952,1736362262341,-500.0,0.0001209,2]
[348169953,1736362262352,-500.0,0.0001209,2]
[348169954,1736362262364,-2329.942514,0.0001209,2]
[348169955,1736362262376,-500.0,0.0001209,2]
[348169956,1736362262386,-1310.72,0.0001209,2]
[348169957,1736362262397,-1030.81,0.0001209,2]
[348169958,1736362262406,-500.0,0.0001209,2]
[348169959,1736362262417,-500.0,0.0001209,2]
[348169960,1736362262427,-500.0,0.0001209,2]
[348169961,1736362262437,-2618.54,0.0001209,2]
[348169962,1736362262447,-2072.313167,0.0001209,2]
[348169963,1736362262457,-500.0,0.0001209,2]
[348169964,1736362262467,-1325.27,0.0001209,2]
[348169965,1736362262477,-500.0,0.0001209,2]
[348169966,1736362262486,-621.86,0.0001209,2]
[348169967,1736362262497,-500.0,0.0001209,2]
[348169968,1736362262509,-500.0,0.0001209,2]
[348169969,1736362262519,-500.0,0.0001209,2]
[348169970,1736362262530,-3041.28,0.0001209,2]
[348169971,1736362262546,-1664.79,0.0001209,2]
[348169972,1736362262557,-500.0,0.00012091,2]
[348169973,1736362262567,-500.0,0.00012091,2]
[348169974,1736362262577,-478.22,0.00012091,2]
[348169975,1736362262587,-500.0,0.00012091,2]
[348169976,1736362262597,-500.0,0.00012091,2]
[348169977,1736362262607,-608.48,0.00012091,2]
[348169978,1736362262617,-500.0,0.00012091,2]
[348169979,1736362262627,-720.65,0.00012091,2]
[348169980,1736362262638,-500.0,0.00012091,2]
[348169981,1736362262648,-471.24,0.00012091,2]
[348169982,1736362262658,-500.0,0.00012091,2]
[348169983,1736362262668,-500.0,0.00012091,2]
[348169984,1736362262678,-263.43,0.00012091,2]
[348169985,1736362262688,-500.0,0.00012091,2]
[348169986,1736362262698,-500.0,0.00012091,2]
[348169987,1736362262707,-500.0,0.00012091,2]
[348169988,1736362262716,-500.0,0.00012091,2]
[348169989,1736362262726,-477.71560071,0.00012091,2]
[348169990,1736362262735,-624.94,0.00012091,2]
[348169991,1736362262744,-500.0,0.00012091,2]
[348169992,1736362262754,-665.75,0.00012091,2]
[348169993,1736362262764,-659.93,0.00012091,2]
[348169994,1736362262774,-500.0,0.00012091,2]
[348169995,1736362262784,-500.0,0.00012091,2]
[348169996,1736362262798,-481.24,0.00012091,2]
[348169997,1736362262808,-176.07293838,0.00012091,2]
[348169998,1736362262817,-292.25124154,0.00012091,2]
[348169999,1736362262827,-500.0,0.00012091,2]
[348170000,1736362262837,-500.0,0.00012091,2]
[348170001,1736362262847,-355.72,0.00012091,2]
[348170002,1736362262857,-500.0,0.00012091,2]
[348170003,1736362262866,-500.0,0.00012091,2]
[348170004,1736362262877,-500.0,0.00012091,2]
[348170005,1736362262887,-500.0,0.00012091,2]
[348170006,1736362262897,-500.0,0.00012091,2]
[348170007,1736362262907,-201.4,0.00012091,2]
[348170008,1736362262919,-542.69,0.00012091,2]
[348170009,1736362262932,-1462.34,0.00012091,2]
[348170010,1736362262996,-757.86,0.00012091,2]
[348170011,1736362263007,-701.16,0.00012091,2]
[348170012,1736362263018,-2580.23,0.00012091,2]
[348170013,1736362263027,-628.18,0.00012091,2]
[348170014,1736362263041,-500.0,0.00012091,2]
[348170015,1736362263051,-500.0,0.00012091,2]
[348170016,1736362263061,-150.0,0.00012095,2]
[348170017,1736362263070,-433.0,0.00012099,2]
[348170018,1736362263080,-1000.0,0.000121,2]
[348170019,1736362263090,-150.0,0.00012103,2]
[348170020,1736362263100,-150.0,0.00012106,2]
[348170021,1736362263109,-150.0,0.0001211,2]
[348170022,1736362263119,-150.0,0.00012111,2]
[348170023,1736362263129,-150.0,0.00012113,2]
[348170024,1736362263139,-150.0,0.00012114,2]
[348170025,1736362263149,-272379.0803658,0.00012116,2]
[348170026,1736362263159,-150.0,0.00012118,2]
[348170027,1736362263170,-150.0,0.00012121,2]
[348170028,1736362263180,-150.0,0.00012122,2]
[348170029,1736362263190,-150.0,0.00012126,2]
[348170030,1736362263199,-150.0,0.00012132,2]
[348170031,1736362263210,-150.0,0.00012138,2]
[348170032,1736362263220,-150.0,0.00012143,2]
[348170033,1736362263231,-150.0,0.00012144,2]
[348170034,1736362263243,-150.0,0.00012145,2]
[348170035,1736362263254,-150.0,0.00012145,2]
[348170036,1736362263265,-150.0,0.00012147,2]
[348170037,1736362263275,-150.0,0.00012149,2]
[348170038,1736362263285,-150.0,0.00012154,2]
[348170039,1736362263299,-150.0,0.00012156,2]
[348170040,1736362263311,-150.0,0.00012156,2]
[348170041,1736362263321,-150.0,0.00012162,2]
[348170042,1736362263331,-150.0,0.00012162,2]
[348170043,1736362263342,-1215.3,0.00012164,2]
[348170044,1736362263354,-993.2,0.00012164,2]
[348170045,1736362263367,-150.0,0.00012167,2]
[348170046,1736362263379,-150.0,0.00012168,2]
[348170047,1736362263390,-150.0,0.00012168,2]
[348170048,1736362263402,-173.84,0.00012169,2]
[348170049,1736362263413,-150.0,0.00012171,2]
[348170050,1736362263424,-3944.795,0.00012175,2]
[348170051,1736362263436,-150.0,0.00012176,2]
[348170052,1736362263448,-171.613,0.00012177,2]
[348170053,1736362263459,-150.0,0.00012177,2]
[348170054,1736362263470,-94856.09942475,0.0001218,2]
[348170055,1736362263481,-24025.05580484,0.0001218,2]
[348170056,1736362263492,-150.0,0.00012181,2]
[348170057,1736362263503,-150.0,0.00012181,2]
[348170058,1736362263513,-150.0,0.00012183,2]
[348170059,1736362263523,-150.0,0.00012185,2]
[348170060,1736362263534,-150.0,0.00012186,2]
[348170061,1736362263550,-1500.0,0.00012186,2]
[348170062,1736362263561,-150.0,0.00012189,2]
[348170063,1736362263572,-150.0,0.0001219,2]
[348170064,1736362263582,-150.0,0.00012197,2]
[348170065,1736362263593,-150.0,0.00012199,2]
[348170066,1736362263604,-150.0,0.00012199,2]
[348170067,1736362263614,-2353.06,0.000122,2]
[348170068,1736362263624,-1069.0,0.000122,2]
[348170069,1736362263635,-1000.0,0.000122,2]
[348170070,1736362263645,-154.04474973,0.000122,2]
[348170071,1736362263655,-15747.66883384,0.000122,2]
[348170072,1736362263665,-2410.01901791,0.000122,2]
[348170073,1736362263675,-150.0,0.00012201,2]
[348170074,1736362263686,-500.0,0.00012202,2]
[348170075,1736362263698,-2000.0,0.00012202,2]
[348170076,1736362263709,-200.0,0.00012202,2]
[348170077,1736362263719,-150.0,0.00012202,2]
[348170078,1736362263730,-1500.0,0.00012202,2]
[348170079,1736362263741,-150.0,0.00012203,2]
[348170080,1736362263752,-150.0,0.00012203,2]
[348170081,1736362263763,-150.0,0.00012203,2]
[348170082,1736362263774,-150.0,0.00012206,2]
[348170083,1736362263784,-150.0,0.00012211,2]
[348170084,1736362263801,-150.0,0.00012212,2]
[348170085,1736362263813,-150.0,0.00012214,2]
[348170086,1736362263823,-150.0,0.00012215,2]
[348170087,1736362263834,-150.0,0.00012221,2]
[348170088,1736362263845,-150.0,0.00012224,2]
[348170089,1736362263855,-561.09,0.00012225,2]
[348170090,1736362263865,-150.0,0.00012225,2]
[348170091,1736362263875,-500.0,0.00012226,2]
[348170092,1736362263885,-500.0,0.00012226,2]
[348170093,1736362263895,-1871.82,0.00012226,2]
[348170094,1736362263905,-500.0,0.00012226,2]
[348170095,1736362263917,-651.25,0.00012226,2]
[348170096,1736362263928,-515.76,0.00012226,2]
[348170097,1736362263941,-507.55,0.00012226,2]
[348170098,1736362263953,-500.0,0.00012226,2]
[348170099,1736362263963,-500.0,0.00012226,2]
[348170100,1736362263974,-150.0,0.00012232,2]
[348170101,1736362263985,-214.31444851,0.00012233,2]
[348170102,1736362263996,-150.0,0.00012236,2]
[348170103,1736362264009,-150.0,0.00012237,2]
[348170104,1736362264020,-150.0,0.00012238,2]
[348170105,1736362264031,-150.0,0.00012239,2]
[348170106,1736362264046,-150.0,0.0001224,2]
[348170107,1736362264056,-150.0,0.00012241,2]
[348170108,1736362264067,-150.0,0.00012245,2]
[348170109,1736362264078,-150.0,0.00012248,2]
[348170110,1736362264089,-150.0,0.00012249,2]
[348170111,1736362264100,-150.0,0.00012254,2]
[348170112,1736362264111,-150.0,0.00012254,2]
[348170113,1736362264122,-150.0,0.00012255,2]
[348170114,1736362264134,-150.0,0.00012259,2]
[348170115,1736362264145,-150.0,0.00012261,2]
[348170116,1736362264156,-150.0,0.00012262,2]
[348170117,1736362264167,-500.0,0.00012262,2]
[348170118,1736362264178,-992.92,0.00012263,2]
[348170119,1736362264189,-605.86,0.00012263,2]
[348170120,1736362264199,-688.45,0.00012263,2]
[348170121,1736362264210,-1118.67,0.00012263,2]
[348170122,1736362264221,-618.66,0.00012263,2]
[348170123,1736362264231,-868.06,0.00012263,2]
[348170124,1736362264241,-1466.85,0.00012263,2]
[348170125,1736362264251,-780.29,0.00012263,2]
[348170126,1736362264261,-730.05,0.00012263,2]
[348170127,1736362264272,-500.0,0.00012263,2]
[348170128,1736362264283,-796.37,0.00012263,2]
[348170129,1736362264296,-1887.92,0.00012263,2]
[348170130,1736362264306,-976.17,0.00012263,2]
[348170131,1736362264317,-543.78,0.00012263,2]
[348170132,1736362264328,-500.0,0.00012263,2]
[348170133,1736362264340,-862.27,0.00012263,2]
[348170134,1736362264352,-500.0,0.00012263,2]
[348170135,1736362264365,-559.19,0.00012263,2]
[348170136,1736362264377,-508.44,0.00012263,2]
[348170137,1736362264389,-1264.47,0.00012263,2]
[348170138,1736362264400,-533.52,0.00012263,2]
[348170139,1736362264411,-150.0,0.0001227,2]
[348170140,1736362264422,-150.0,0.0001227,2]
[348170141,1736362264433,-306.09073736,0.00012273,2]
[348170142,1736362264445,-2152.0,0.00012274,2]
[348170143,1736362264456,-228.68945454,0.00012274,2]
[348170144,1736362264467,-150.0,0.00012274,2]
[348170145,1736362264477,-150.0,0.00012274,2]
[348170146,1736362264488,-153.84235597,0.00012274,2]
[348170147,1736362264499,-150.0,0.00012276,2]
[348170148,1736362264511,-150.0,0.00012278,2]
[348170149,1736362264522,-150.0,0.00012279,2]
[348170150,1736362264532,-150.0,0.0001228,2]
[348170151,1736362264547,-1500.0,0.00012281,2]
[348170152,1736362264560,-150.0,0.00012288,2]
[348170153,1736362264571,-1118.20718362,0.00012299,3]
[348170154,1736362264582,-489.0658,0.00012299,2]
[348170155,1736362264593,-999.0,0.00012299,2]
[348170156,1736362264605,-1827115.22876369,0.000123,4]
[348170157,1736362264951,-500.0,0.00010172,2]
[348170158,1736362264963,-500.0,0.00010994,2]
[348170159,1736362264976,-2167.646912,0.000123,4]
[348170160,1736362264989,-1001.2,0.000123,4]
[348170161,1736362265002,-896.86068391,0.000123,4]
[348170162,1736362265017,-599.725,0.000123,4]
[348170163,1736362265070,-9653.8,0.000123,4]
[348170164,1736362265083,-377.454,0.000123,4]
[348170165,1736362265104,-500.0,0.00011268,2]
[348170166,1736362265115,-617.06029197,0.000123,4]
[348170167,1736362265402,-500.0,9.899e-05,2]
[348170168,1736362265412,-62.7471336,0.00010173,2]
[348170169,1736362271776,-437.2528664,0.00010173,2]
[348170170,1736362271785,-500.0,0.00010446,2]
[348170171,1736362271797,-47.82708917,0.00010446,2]
[348170172,1736362271808,-452.17291083,0.00010446,2]
[348170173,1736362271818,-227.15208917,0.00010447,2]
[348170174,1736362271830,-22.25776685,0.00010447,2]
[348170175,1736362271839,-500.0,0.0001072,2]
[348170176,1736362271849,-422.14860609,0.0001072,2]
[348170177,1736362271861,-77.85139391,0.0001072,2]
[348170178,1736362271871,-500.0,0.00010994,2]
[348170179,1736362271881,-500.0,0.00010994,2]
[348170180,1736362271891,-500.0,0.00011268,2]
[348170181,1736362271900,-500.0,0.00011268,2]
[348170182,1736362271910,-500.0,0.00011542,2]
[348170183,1736362271920,-500.0,0.00011542,2]
[348170184,1736362271931,-500.0,0.00011542,2]
[348170185,1736362271941,-500.0,0.00011816,2]
[348170186,1736362271951,-280.7295058,0.00011816,2]
[348170187,1736362271961,-137.80206793,0.00011816,2]
[348170188,1736362271986,-362.19793207,0.00011816,2]
[348170189,1736362271995,-311.05206793,0.0001209,2]
[348170190,1736362272008,-188.94793207,0.0001209,2]
[348170191,1736362272018,-91.9832272,0.0001209,2]
[348170192,1736362272030,-408.0167728,0.0001209,2]
[348170193,1736362272040,-42.0532272,0.0001209,2]
[348170194,1736362272053,-457.9467728,0.0001209,2]
[348170195,1736362272063,-53.0932272,0.000123,4]
[348170196,1736362272074,-378.62,0.000123,4]
[348170197,1736362272085,-329.1100001,0.000123,4]
[348170198,1736362272486,-535.899978,9.633e-05,2]
[348170199,1736362272506,-187.980022,9.633e-05,2]
[348170200,1736362272515,-500.0,9.899e-05,2]
[348170201,1736362272525,-1769.5,0.00010172,2]
[348170202,1736362272535,-1769.5,0.00010446,2]
[348170203,1736362272545,-635172.0954112,0.000123,4]
[348170204,1736362272555,-139346.94343049,0.000123,2]
[348170205,1736362273086,-500.0,0.00010172,2]
[348170206,1736362273096,-1013.59,0.00010265,2]
[348170207,1736362273106,-500.0,0.00010446,2]
[348170208,1736362273116,-159.71606537,0.00010662,2]
[348170209,1736362273126,-429.33295132,0.0001072,2]
[348170210,1736362273139,-1340.16704868,0.0001072,2]
[348170211,1736362273148,-500.0,0.0001072,2]
[348170212,1736362273157,-1769.5,0.00010994,2]
[348170213,1736362273166,-500.0,0.00010994,2]
[348170214,1736362273176,-1769.5,0.00011268,2]
[348170215,1736362273186,-443.15944399,0.00011268,2]
[348170216,1736362273198,-179.09119204,0.00011268,2]
[348170217,1736362273208,-1769.5,0.00011542,2]
[348170218,1736362273218,-1769.5,0.00011816,2]
[348170219,1736362273227,-314.0474289,0.0001209,2]
[348170220,1736362273254,-500.0,0.00010662,2]
[348170221,1736362273264,-500.0,0.00010893,2]
[348170222,1736362273274,-1039.48499,0.0001209,2]
[348170223,1736362273286,-415.9675811,0.0001209,2]
[348170224,1736362273296,-662022.41142713,0.000123,2]
[348170225,1736362273329,-856.7137027,0.0001121,2]
[348170226,1736362273340,-143.2862973,0.0001121,2]
[348170227,1736362273350,-1500.0,0.00012212,2]
[348170228,1736362273360,-25278.20949488,0.000123,2]
[348170229,1736362425073,171.15657267,0.0002,120]
[348170230,1736362455387,171.1565727,0.0002,120]
[348170231,1736362686351,-886.25,9.017e-05,2]
[348170232,1736362686376,-3238.23,9.444e-05,2]
[348170233,1736362686400,-250.0,9.563e-05,2]
[348170234,1736362686424,-631.39,9.601e-05,2]
[348170235,1736362686452,-3346.79,9.613e-05,2]
[348170236,1736362686476,-1500.0,9.779e-05,2]
[348170237,1736362686500,-147.34,9.898e-05,2]
[348170238,1736362690479,-1002.33,9.461e-05,2]
[348170239,1736362690505,-8997.67,9.613e-05,2]
[348170240,1736362696096,-10000.0,9.613e-05,2]
[348170241,1736362701308,-10000.0,9.613e-05,2]
[348170242,1736362707493,-10000.0,9.613e-05,2]
[348170243,1736362710841,-10000.0,9.613e-05,2]
[348170244,1736362714773,-1002.33,9.613e-05,2]
[348170245,1736362714797,-2.66,9.898e-05,2]
[348170246,1736362714823,-1165.19,9.899e-05,2]
[348170247,1736362714848,-716.29,9.899e-05,2]
[348170248,1736362714871,-1000.0,9.973e-05,2]
[348170249,1736362714896,-154.04474973,9.973e-05,2]
[348170250,1736362717484,2311.68,9.899e-05,2]
[348170251,1736362721797,2375.5685,9.973e-05,2]
[348170252,1736362737570,-214.31444851,0.0001,2]
[348170253,1736362737593,-1057.92230176,0.00010072,2]
[348170254,1736362738558,532.44,0.00015616,64]
[348170255,1736362738821,532.44,0.00015616,70]
[348170256,1736362739107,532.44,0.00015616,76]
[348170257,1736362739360,532.44,0.00015616,82]
[348170258,1736362739574,532.44,0.00015616,88]
[348170259,1736362739845,532.44,0.00015616,95]
[348170260,1736362740064,532.44,0.00015616,101]
[348170261,1736362740398,532.44,0.00015616,107]
[348170262,1736362740506,532.44,0.00015616,113]
[348170263,1736362740722,532.44,0.00015616,120]
[348170264,1736362763535,987.87,9.899e-05,2]
[348170265,1736362784327,200.0,9.871e-05,2]
[348170266,1736362794539,365.87893584,9.972e-05,2]
[348170267,1736362800585,365.87893582,9.985e-05,2]
[348170268,1736362806519,365.87893582,9.997e-05,2]
[348170269,1736362806885,1534.43,9.899e-05,2]
[348170270,1736362849299,837.67,9.899e-05,2]
[348170272,1736362879522,250.0,9.806e-05,2]
[348170273,1736362881838,833.86,9.899e-05,2]
[348170274,1736362916940,258.53319252,9.899e-05,2]
[348170275,1736362916963,241.46680748,9.899e-05,2]
[348170276,1736362931243,990.41,9.899e-05,2]
[348170277,1736362935028,541.4,9.742e-05,2]
[348170278,1736362946195,1000.0,9.704e-05,2]
[348170279,1736362969839,1479.12,9.701e-05,2]
[348170280,1736362972257,1986.15,9.899e-05,2]
[348170281,1736363022267,998.2,9.899e-05,2]
[348170282,1736363093670,636.87,9.899e-05,2]
[348170283,1736363096416,2126.38319252,9.973e-05,2]
[348170284,1736363096439,9316.81570748,9.973e-05,2]
[348170285,1736363101594,683.18429252,9.554e-05,2]
[348170286,1736363101619,10000.0,9.554e-05,2]
[348170287,1736363101643,10000.0,9.554e-05,2]
[348170288,1736363101669,3216.81570748,9.554e-05,2]
[348170289,1736363111252,1018.78,9.554e-05,2]
[348170290,1736363130861,520.12,9.899e-05,2]
[348170291,1736363137673,500.0,9.972e-05,2]
[348170294,1736363177988,500.0,9.899e-05,2]
[348170295,1736363227673,836.8,9.899e-05,2]
[348170343,1736363256551,173.31,9.509e-05,2]
[348170344,1736363259005,500.0,9.899e-05,2]
[348170345,1736363283584,534.58,9.899e-05,2]
[348170346,1736363289486,841.93,8.219e-05,2]
[348170347,1736363304334,-300.0,0.00010071,2]
[348170348,1736363304359,-993.69,0.00010071,2]
[348170349,1736363304382,-981.83,0.00010071,2]
[348170350,1736363304406,-1015.62,0.00010071,2]
[348170351,1736363304434,-983.07,0.00010071,2]
[348170352,1736363304459,-980.64,0.00010071,2]
[348170353,1736363304483,-1001.04,0.00010072,2]
[348170354,1736363304507,-1017.0,0.00010072,2]
[348170355,1736363304530,-1015.58,0.00010072,2]
[348170356,1736363304554,-1015.45,0.00010072,2]
[348170357,1736363304577,-696.08,0.00010072,2]
[348170358,1736363308788,-1002.27,0.00010071,2]
[348170359,1736363308816,-310.57,0.00010072,2]
[348170360,1736363308842,-1017.65,0.00010072,2]
[348170361,1736363308865,-993.05,0.00010072,2]
[348170362,1736363308888,-1001.34,0.00010072,2]
[348170363,1736363308913,-983.33,0.00010072,2]
[348170364,1736363308942,-1019.56,0.00010072,2]
[348170365,1736363308967,-1016.05,0.00010072,2]
[348170366,1736363308995,-985.87,0.00010072,2]
[348170367,1736363309023,-982.51,0.00010072,2]
[348170368,1736363309049,-687.8,0.00010072,2]
[348170369,1736363313939,-309.37,0.00010072,2]
[348170370,1736363313966,-359.69016016,0.00010072,2]
[348170371,1736363313992,-150.0,0.00010072,2]
[348170372,1736363314015,-380.1786,0.00010072,2]
[348170373,1736363314039,-322.40590145,0.00010072,2]
[348170374,1736363314062,-3199.2477,0.00010072,2]
[348170375,1736363314086,-5279.10763839,0.00010073,2]
[348170376,1736363316703,500.0,9.899e-05,2]
[348170377,1736363317923,-10000.0,0.00010073,2]
[348170378,1736363322202,-10000.0,0.00010073,2]
[348170379,1736363326046,-10000.0,0.00010073,2]
[348170380,1736363327595,549.01,9.899e-05,2]
[348170381,1736363330965,-308.65429252,0.00010073,2]
[348170382,1736363334472,170.13,9.712e-05,2]
[348170383,1736363334773,-10000.0,0.00010073,2]
[348170384,1736363340433,1500.0,9.712e-05,2]
[348170385,1736363344052,-150.0,0.00010072,2]
[348170386,1736363344078,-300.0,0.00010072,2]
[348170387,1736363344104,-7879.87,0.00010073,2]
[348170388,1736363348777,-10000.0,0.00010073,2]
[348170389,1736363354365,-982.53,0.00010073,2]
[348170390,1736363354391,-9017.47,0.00010073,2]
[348170391,1736363357550,1257.88,9.899e-05,2]
[348170392,1736363358953,-10000.0,0.00010073,2]
[348170393,1736363364125,-8742.12,0.00010073,2]
[348170394,1736363368928,-9184.75736909,0.00010073,2]
[348170395,1736363368952,-815.24263091,0.00010073,2]
[348170404,1736363431876,-250.0,9.728e-05,2]
[348170405,1736363431886,-980.21,9.844e-05,2]
[348170406,1736363431896,-982.72,9.873e-05,2]
[348170407,1736363431905,-1378.63,9.899e-05,2]
[348170408,1736363431914,-1812.99,9.899e-05,2]
[348170409,1736363431923,-300.0,0.00010072,2]
[348170410,1736363431933,-203.47736909,0.00010073,2]
[348170411,1736363431943,-1002.96,0.00010073,2]
[348170412,1736363431952,-988.82,0.00010073,2]
[348170413,1736363431962,-983.66,0.00010073,2]
[348170414,1736363431971,-1010.16,0.00010073,2]
[348170415,1736363431981,-1196.85202974,0.00010097,4]
[348170416,1736363431997,-2492.73603664,0.00010097,4]
[348170417,1736363432008,-1390.78846224,0.00010097,4]
[348170418,1736363432021,-5255.16146246,0.00010097,4]
[348170419,1736363432033,-349.57893753,0.00010097,4]
[348170420,1736363432285,-701.26254607,0.00010097,4]
[348170421,1736363432298,-1342.8751969,0.00010097,4]
[348170422,1736363432308,-1500.0,0.00010135,2]
[348170423,1736363432321,-172.93,0.00010137,2]
[348170424,1736363432331,-545.13328385,0.0001017,2]
[348170425,1736363432341,-500.0,0.0001017,2]
[348170426,1736363432351,-500.0,0.0001017,2]
[348170427,1736363432360,-531.92,0.0001017,2]
[348170428,1736363432370,-578.85,0.00010171,2]
[348170429,1736363432380,-500.0,0.00010171,2]
[348170430,1736363432392,-489.9895,0.00010171,2]
[348170431,1736363432401,-500.0,0.00010171,2]
[348170432,1736363432411,-500.0,0.00010171,2]
[348170434,1736363432421,-500.0,0.00010171,2]
[348170436,1736363432430,-500.0,0.00010171,2]
[348170438,1736363432440,-527.02389303,0.00010171,2]
[348170440,1736363432450,-238.81,0.00010171,2]
[348170442,1736363432459,-500.0,0.00010171,2]
[348170444,1736363432468,-500.0,0.00010171,2]
[348170446,1736363432478,-802.38,0.00010171,2]
[348170448,1736363432488,-500.0,0.00010171,2]
[348170451,1736363432498,-534.26202646,0.00010171,2]
[348170452,1736363432508,-500.0,0.00010171,2]
[348170454,1736363432519,-500.0,0.00010171,2]
[348170456,1736363432529,-228.64,0.00010171,2]
[348170459,1736363432539,-500.0,0.00010171,2]
[348170461,1736363432548,-509.97,0.00010171,2]
[348170463,1736363432557,-500.0,0.00010171,2]
[348170464,1736363432567,-500.0,0.00010171,2]
[348170466,1736363432577,-500.0,0.00010171,2]
[348170468,1736363432587,-500.0,0.00010171,2]
[348170470,1736363432596,-500.0,0.00010171,2]
[348170472,1736363432606,-500.0,0.00010171,2]
[348170474,1736363432615,-500.0,0.00010171,2]
[348170476,1736363432625,-500.0,0.00010171,2]
[348170478,1736363432634,-500.0,0.00010171,2]
[348170480,1736363432643,-500.0,0.00010171,2]
[348170482,1736363432653,-718.24,0.00010171,2]
[348170484,1736363432663,-500.0,0.00010171,2]
[348170486,1736363432673,-632.06624344,0.00010171,2]
[348170488,1736363432682,-500.0,0.00010171,2]
[348170490,1736363432692,-611.0,0.00010171,2]
[348170492,1736363432702,-922.32,0.00010171,2]
[348170494,1736363432711,-500.0,0.00010171,2]
[348170496,1736363432720,-500.0,0.00010171,2]
[348170498,1736363432730,-500.0,0.00010171,2]
[348170500,1736363432740,-500.0,0.00010171,2]
[348170502,1736363432749,-500.0,0.00010171,2]
[348170504,1736363432758,-500.0,0.00010171,2]
[348170506,1736363432772,-500.0,0.00010171,2]
[348170508,1736363432782,-638.01,0.00010171,2]
[348170510,1736363432791,-500.0,0.00010171,2]